fUST/lending_fUST_20250106
["ID","MTS","AMOUNT","RATE_DAILY","PERIOD"]
[347852693,1736159440716,-1403.168996,0.00019178,2]
[347852695,1736159440726,-500.29219478,0.00019178,2]
[347852697,1736159440735,-410.31768224,0.00019178,2]
[347852971,1736159443497,-992.85131376,0.00019178,2]
[347852973,1736159443506,-500.78523722,0.00019178,2]
[347852975,1736159443515,-285.53344902,0.00019178,2]
[347852990,1736159443653,-1117.63554698,0.00019178,2]
[347852992,1736159443663,-1403.168996,0.00019178,2]
[347852994,1736159443673,-1403.168996,0.00019178,2]
[347852996,1736159443683,-500.0,0.00019178,2]
[347852998,1736159443692,-500.0,0.00019178,2]
[347853000,1736159443701,-500.0,0.00019178,2]
[347853002,1736159443711,-1042.08,0.00019178,2]
[347853004,1736159443720,-290.58889046,0.00019178,2]
[347853236,1736159446430,-209.41110954,0.00019178,2]
[347853237,1736159446440,-623.88970886,0.00019178,2]
[347853239,1736159446449,-500.0,0.00019178,2]
[347853241,1736159446459,-500.0,0.00019178,2]
[347853243,1736159446468,-500.0,0.00019178,2]
[347853244,1736159446477,-500.0,0.00019178,2]
[347853247,1736159446487,-500.63090278,0.00019178,2]
[347853248,1736159446496,-500.0,0.00019178,2]
[347853251,1736159446505,-500.0,0.00019178,2]
[347853253,1736159446514,-501.43135325,0.00019178,2]
[347853255,1736159446523,-500.0,0.00019178,2]
[347853257,1736159446533,-500.0,0.00019178,2]
[347853259,1736159446542,-500.0,0.00019178,2]
[347853260,1736159446551,-508.32098783,0.00019178,2]
[347853262,1736159446561,-500.0,0.00019178,2]
[347853265,1736159446570,-500.0,0.00019178,2]
[347853266,1736159446579,-500.0,0.00019178,2]
[347853269,1736159446589,-500.0,0.00019178,2]
[347853271,1736159446598,-500.0,0.00019178,2]
[347853273,1736159446609,-505.09807017,0.00019178,2]
[347853275,1736159446620,-500.0,0.00019178,2]
[347853277,1736159446629,-500.0,0.00019178,2]
[347853279,1736159446639,-509.98548726,0.00019178,2]
[347853280,1736159446648,-500.0,0.00019178,2]
[347853283,1736159446658,-500.43490678,0.00019178,2]
[347853285,1736159446667,-500.0,0.00019178,2]
[347853286,1736159446676,-500.0,0.00019178,2]
[347853289,1736159446686,-501.12991436,0.00019178,2]
[347853291,1736159446695,-500.0,0.00019178,2]
[347853293,1736159446704,-500.0,0.00019178,2]
[347853295,1736159446714,-4200.21,0.00019178,2]
[347853297,1736159446723,-500.0,0.00019178,2]
[347853299,1736159446732,-4200.21,0.00019178,2]
[347853300,1736159446741,-500.0,0.00019178,2]
[347853302,1736159446750,-500.0,0.00019178,2]
[347853305,1736159446760,-500.0,0.00019178,2]
[347853317,1736159446769,-351.48113516,0.00019178,2]
[347853319,1736159446872,-188.0,0.00019178,2]
[347853321,1736159446882,-500.0,0.00019178,2]
[347853323,1736159446892,-502.36263926,0.00019178,2]
[347853325,1736159446902,-500.0,0.00019178,2]
[347853327,1736159446911,-500.0,0.00019178,2]
[347853329,1736159446920,-500.59922735,0.00019178,2]
[347853331,1736159446929,-500.0,0.00019178,2]
[347853333,1736159446938,-500.0,0.00019178,2]
[347853335,1736159446948,-500.0,0.00019178,2]
[347853337,1736159446957,-500.0,0.00019178,2]
[347853339,1736159446966,-501.4781376,0.00019178,2]
[347853341,1736159446975,-500.0,0.00019178,2]
[347853343,1736159446985,-500.0,0.00019178,2]
[347853345,1736159446994,-500.0,0.00019178,2]
[347853347,1736159447003,-500.0,0.00019178,2]
[347853349,1736159447012,-500.0,0.00019178,2]
[347853351,1736159447021,-500.0,0.00019178,2]
[347853353,1736159447032,-500.0,0.00019178,2]
[347853355,1736159447042,-500.0,0.00019178,2]
[347853357,1736159447051,-500.0,0.00019178,2]
[347853359,1736159447060,-500.0,0.00019178,2]
[347853361,1736159447070,-500.0,0.00019178,2]
[347853363,1736159447079,-500.0,0.00019178,2]
[347853365,1736159447088,-500.0,0.00019178,2]
[347853367,1736159447097,-500.0,0.00019178,2]
[347853369,1736159447107,-500.0,0.00019178,2]
[347853371,1736159447117,-505.27386322,0.00019178,2]
[347853373,1736159447126,-500.0,0.00019178,2]
[347853375,1736159447135,-500.0,0.00019178,2]
[347853377,1736159447144,-503.10646768,0.00019178,2]
[347853379,1736159447153,-500.0,0.00019178,2]
[347853381,1736159447163,-500.0,0.00019178,2]
[347853383,1736159447173,-500.0,0.00019178,2]
[347853385,1736159447182,-500.0,0.00019178,2]
[347853387,1736159447192,-500.0,0.00019178,2]
[347853389,1736159447201,-507.79006508,0.00019178,2]
[347853391,1736159447210,-502.23798082,0.00019178,2]
[347853393,1736159447219,-500.0,0.00019178,2]
[347853395,1736159447229,-500.0,0.00019178,2]
[347853397,1736159447237,-500.0,0.00019178,2]
[347853399,1736159447246,-500.0,0.00019178,2]
[347853401,1736159447255,-500.60088783,0.00019178,2]
[347853403,1736159447264,-152.119931,0.00019178,2]
[347853405,1736159447274,-500.0,0.00019178,2]
[347853407,1736159447286,-500.0,0.00019178,2]
[347853409,1736159447295,-500.0,0.00019178,2]
[347853411,1736159447304,-500.0,0.00019178,2]
[347853413,1736159447314,-1714.61,0.00019178,2]
[347853415,1736159447324,-500.0,0.00019178,2]
[347853417,1736159447333,-500.0,0.00019178,2]
[347853419,1736159447342,-577.46925232,0.00019178,2]
[347853421,1736159447351,-500.0,0.00019178,2]
[347853423,1736159447362,-500.0,0.00019178,2]
[347853425,1736159447371,-500.57126613,0.00019178,2]
[347853427,1736159447380,-500.0,0.00019178,2]
[347853429,1736159447390,-500.0,0.00019178,2]
[347853431,1736159447399,-511.11137942,0.00019178,2]
[347853433,1736159447408,-500.0,0.00019178,2]
[347853435,1736159447418,-500.0,0.00019178,2]
[347853437,1736159447427,-500.0,0.00019178,2]
[347853439,1736159447437,-500.0,0.00019178,2]
[347853441,1736159447446,-500.0,0.00019178,2]
[347853443,1736159447456,-500.0,0.00019178,2]
[347853445,1736159447466,-500.0,0.00019178,2]
[347853447,1736159447475,-500.0,0.00019178,2]
[347853449,1736159447484,-500.0,0.00019178,2]
[347853451,1736159447493,-500.0,0.00019178,2]
[347853453,1736159447502,-501.86501998,0.00019178,2]
[347853455,1736159447511,-500.0,0.00019178,2]
[347853457,1736159447520,-151.0,0.00019178,2]
[347853459,1736159447530,-151.0,0.00019178,2]
[347853461,1736159447539,-500.0,0.00019178,2]
[347853463,1736159447548,-501.6388304,0.00019178,2]
[347853465,1736159447558,-151.0,0.00019178,2]
[347853467,1736159447567,-500.0,0.00019178,2]
[347853469,1736159447576,-500.0,0.00019178,2]
[347853471,1736159447585,-1223.36,0.00019178,2]
[347853473,1736159447595,-500.0,0.00019178,2]
[347853475,1736159447605,-500.0,0.00019178,2]
[347853477,1736159447615,-500.0,0.00019178,2]
[347853479,1736159447625,-501.98771435,0.00019178,2]
[347853481,1736159447634,-500.0,0.00019178,2]
[347853483,1736159447643,-500.0,0.00019178,2]
[347853485,1736159447652,-500.0,0.00019178,2]
[347853487,1736159447663,-500.0,0.00019178,2]
[347853489,1736159447673,-500.0,0.00019178,2]
[347853491,1736159447682,-500.0,0.00019178,2]
[347853493,1736159447691,-500.0,0.00019178,2]
[347853495,1736159447700,-500.0,0.00019178,2]
[347853497,1736159447709,-500.0,0.00019178,2]
[347853499,1736159447718,-573.60378773,0.00019178,2]
[347853501,1736159447727,-500.0,0.00019178,2]
[347853503,1736159447736,-500.0,0.00019178,2]
[347853505,1736159447745,-500.0,0.00019178,2]
[347853507,1736159447755,-500.0,0.00019178,2]
[347853509,1736159447763,-500.0,0.00019178,2]
[347853511,1736159447772,-500.0,0.00019178,2]
[347853513,1736159447781,-500.0,0.00019178,2]
[347853515,1736159447790,-587.72242514,0.00019178,2]
[347853517,1736159447799,-500.0,0.00019178,2]
[347853519,1736159447811,-500.0,0.00019178,2]
[347853521,1736159447821,-513.01810358,0.00019178,2]
[347853523,1736159447830,-500.0,0.00019178,2]
[347853525,1736159447839,-326.85237245,0.00019178,2]
[347853527,1736159447848,-500.0,0.00019178,2]
[347853529,1736159447857,-500.0,0.00019178,2]
[347853531,1736159447866,-500.0,0.00019178,2]
[347853533,1736159447876,-500.0,0.00019178,2]
[347853535,1736159447885,-500.0,0.00019178,2]
[347853537,1736159447895,-151.0,0.00019178,2]
[347853539,1736159447904,-214.091343,0.00019178,2]
[347853541,1736159447913,-500.0,0.00019178,2]
[347853543,1736159447922,-151.463292,0.00019178,2]
[347853545,1736159447931,-500.0,0.00019178,2]
[347853547,1736159447940,-500.0,0.00019178,2]
[347853549,1736159447949,-500.0,0.00019178,2]
[347853551,1736159447959,-500.0,0.00019178,2]
[347853553,1736159447968,-501.84941109,0.00019178,2]
[347853555,1736159447977,-500.0,0.00019178,2]
[347853557,1736159447986,-284.58287444,0.00019178,2]
[347853559,1736159447995,-500.0,0.00019178,2]
[347853561,1736159448004,-500.5797417,0.00019178,2]
[347853563,1736159448013,-500.0,0.00019178,2]
[347853565,1736159448022,-500.0,0.00019178,2]
[347853567,1736159448032,-500.0,0.00019178,2]
[347853569,1736159448041,-500.0,0.00019178,2]
[347853571,1736159448050,-500.0,0.00019178,2]
[347853573,1736159448059,-500.0,0.00019178,2]
[347853575,1736159448068,-500.0,0.00019178,2]
[347853577,1736159448077,-500.0,0.00019178,2]
[347853579,1736159448087,-500.0,0.00019178,2]
[347853581,1736159448096,-500.0,0.00019178,2]
[347853583,1736159448105,-500.0,0.00019178,2]
[347853585,1736159448115,-500.0,0.00019178,2]
[347853587,1736159448124,-500.0,0.00019178,2]
[347853589,1736159448133,-500.0,0.00019178,2]
[347853591,1736159448142,-500.0,0.00019178,2]
[347853593,1736159448151,-500.0,0.00019178,2]
[347853595,1736159448160,-500.0,0.00019178,2]
[347853597,1736159448170,-502.40082946,0.00019178,2]
[347853599,1736159448179,-500.0,0.00019178,2]
[347853601,1736159448189,-513.56708994,0.00019178,2]
[347853603,1736159448198,-772.86,0.00019178,2]
[347853605,1736159448207,-500.0,0.00019178,2]
[347853607,1736159448217,-500.0,0.00019178,2]
[347853609,1736159448226,-500.0,0.00019178,2]
[347853611,1736159448236,-500.0,0.00019178,2]
[347853613,1736159448246,-500.0,0.00019178,2]
[347853615,1736159448256,-500.0,0.00019178,2]
[347853617,1736159448266,-500.0,0.00019178,2]
[347853619,1736159448276,-500.0,0.00019178,2]
[347853621,1736159448290,-500.86517735,0.00019178,2]
[347853623,1736159448299,-500.0,0.00019178,2]
[347853625,1736159448309,-500.0,0.00019178,2]
[347853627,1736159448318,-500.0,0.00019178,2]
[347853629,1736159448329,-500.0,0.00019178,2]
[347853631,1736159448339,-500.0,0.00019178,2]
[347853633,1736159448348,-500.0,0.00019178,2]
[347853635,1736159448361,-500.0,0.00019178,2]
[347853637,1736159448371,-500.0,0.00019178,2]
[347853640,1736159448381,-500.0,0.00019178,2]
[347853641,1736159448390,-511.74598517,0.00019178,2]
[347853643,1736159448400,-500.0,0.00019178,2]
[347853645,1736159448409,-500.0,0.00019178,2]
[347853647,1736159448419,-500.0,0.00019178,2]
[347853650,1736159448429,-500.0,0.00019178,2]
[347853652,1736159448439,-500.0,0.00019178,2]
[347853654,1736159448448,-500.0,0.00019178,2]
[347853655,1736159448458,-500.0,0.00019178,2]
[347853658,1736159448467,-1000.0,0.00019178,2]
[347853660,1736159448477,-500.0,0.00019178,2]
[347853662,1736159448486,-500.0,0.00019178,2]
[347853663,1736159448496,-500.0,0.00019178,2]
[347853666,1736159448505,-500.0,0.00019178,2]
[347853668,1736159448515,-500.0,0.00019178,2]
[347853669,1736159448524,-500.0,0.00019178,2]
[347853671,1736159448534,-3141.81,0.00019178,2]
[347853673,1736159448543,-442.19287292,0.00019178,2]
[347853675,1736159448553,-500.0,0.00019178,2]
[347853677,1736159448562,-11056.87,0.00019178,2]
[347853680,1736159448573,-500.0,0.00019178,2]
[347853682,1736159448582,-500.0,0.00019178,2]
[347853684,1736159448592,-177.56662478,0.00019178,2]
[347853686,1736159448601,-500.0,0.00019178,2]
[347853688,1736159448611,-500.0,0.00019178,2]
[347853690,1736159448621,-502.91334679,0.00019178,2]
[347853692,1736159448632,-500.0,0.00019178,2]
[347853694,1736159448640,-500.0,0.00019178,2]
[347853696,1736159448650,-500.0,0.00019178,2]
[347853698,1736159448659,-500.0,0.00019178,2]
[347853700,1736159448669,-500.0,0.00019178,2]
[347853702,1736159448679,-500.0,0.00019178,2]
[347853703,1736159448688,-500.0,0.00019178,2]
[347853704,1736159448699,-500.0,0.00019178,2]
[347853705,1736159448709,-884.96,0.00019178,2]
[347853706,1736159448719,-502.06152105,0.00019178,2]
[347853707,1736159448728,-711.21,0.00019178,2]
[347853708,1736159448737,-500.0,0.00019178,2]
[347853709,1736159448747,-500.0,0.00019178,2]
[347853710,1736159448756,-502.60938928,0.00019178,2]
[347853711,1736159448766,-500.0,0.00019178,2]
[347853712,1736159448775,-242.35565385,0.00019178,2]
[347853713,1736159448785,-500.0,0.00019178,2]
[347853714,1736159448794,-500.0,0.00019178,2]
[347853715,1736159448803,-500.0,0.00019178,2]
[347853716,1736159448813,-500.0,0.00019178,7]
[347853717,1736159448822,-501.11703752,0.00019178,2]
[347853718,1736159448831,-500.0,0.00019178,2]
[347853719,1736159448841,-500.95351757,0.00019178,2]
[347853720,1736159448851,-345.85372101,0.00019178,2]
[347853721,1736159448863,-500.0,0.00019178,2]
[347853722,1736159448873,-500.0,0.00019178,2]
[347853723,1736159448882,-501.72903008,0.00019178,2]
[347853724,1736159448892,-500.0,0.00019178,2]
[347853725,1736159448902,-500.0,0.00019178,2]
[347853726,1736159448912,-500.0,0.00019178,2]
[347853727,1736159448922,-500.0,0.00019178,2]
[347853728,1736159448931,-500.0,0.00019178,2]
[347853729,1736159448941,-500.0,0.00019178,2]
[347853730,1736159448950,-500.0,0.00019178,2]
[347853731,1736159448959,-500.0,0.00019178,2]
[347853732,1736159448970,-500.0,0.00019178,2]
[347853733,1736159448981,-151.0,0.00019178,2]
[347853734,1736159448991,-151.0,0.00019178,2]
[347853735,1736159449000,-251.449428,0.00019178,2]
[347853737,1736159449009,-500.0,0.00019178,2]
[347853738,1736159449019,-500.51788103,0.00019178,2]
[347853739,1736159449027,-500.0,0.00019178,2]
[347853740,1736159449037,-500.0,0.00019178,2]
[347853741,1736159449047,-500.0,0.00019178,2]
[347853742,1736159449056,-447.81707183,0.00019178,2]
[347853743,1736159449066,-500.0,0.00019178,2]
[347853744,1736159449165,-500.0,0.00019178,2]
[347853745,1736159449175,-500.0,0.00019178,2]
[347853746,1736159449184,-500.0,0.00019178,2]
[347853747,1736159449193,-500.0,0.00019178,2]
[347853748,1736159449203,-500.0,0.00019178,2]
[347853749,1736159449211,-500.67761641,0.00019178,2]
[347853750,1736159449221,-500.0,0.00019178,2]
[347853751,1736159449230,-500.0,0.00019178,2]
[347853752,1736159449239,-500.0,0.00019178,2]
[347853753,1736159449248,-500.0,0.00019178,2]
[347853754,1736159449257,-500.0,0.00019178,2]
[347853755,1736159449267,-500.0,0.00019178,2]
[347853756,1736159449277,-500.0,0.00019178,2]
[347853757,1736159449289,-500.0,0.00019178,2]
[347853758,1736159449298,-677.61,0.00019178,2]
[347853759,1736159449307,-677.61,0.00019178,2]
[347853760,1736159449317,-500.0,0.00019178,2]
[347853761,1736159449326,-500.0,0.00019178,2]
[347853762,1736159449336,-652.79,0.00019178,2]
[347853763,1736159449345,-500.0,0.00019178,2]
[347853764,1736159449355,-500.0,0.00019178,2]
[347853765,1736159449365,-429.16448782,0.00019178,2]
[347853766,1736159449375,-500.0,0.00019178,2]
[347853767,1736159449385,-500.0,0.00019178,2]
[347853768,1736159449395,-500.0,0.00019178,2]
[347853769,1736159449405,-500.0,0.00019178,2]
[347853770,1736159449415,-500.0,0.00019178,2]
[347853771,1736159449425,-500.0,0.00019178,2]
[347853772,1736159449435,-500.0,0.00019178,2]
[347853773,1736159449446,-500.0,0.00019178,2]
[347853774,1736159449458,-500.0,0.00019178,2]
[347853775,1736159449468,-500.0,0.00019178,2]
[347853776,1736159449478,-237.8889801,0.00019178,2]
[347853777,1736159449487,-500.0,0.00019178,2]
[347853778,1736159449497,-500.74458558,0.00019178,2]
[347853779,1736159449506,-500.0,0.00019178,2]
[347853780,1736159449515,-162.638744,0.00019178,2]
[347853781,1736159449525,-167.197958,0.00019178,2]
[347853782,1736159449534,-459.486,0.000192,2]
[347853784,1736159449543,-8498.21237318,0.000192,2]
[347853786,1736159449552,-8519.830122,0.000193,2]
[347853788,1736159449562,-8519.83012174,0.000193,2]
[347853790,1736159449571,-8519.83012174,0.000193,2]
[347853792,1736159449581,-8519.83012174,0.000193,2]
[347853794,1736159449590,-8519.83012174,0.000193,2]
[347853795,1736159449600,-8519.83012174,0.000193,2]
[347853797,1736159449609,-8519.83012174,0.000193,2]
[347853799,1736159449618,-151.0,0.000193,2]
[347853800,1736159449627,-1403.168996,0.000193,2]
[347853801,1736159449637,-1403.168996,0.000193,2]
[347853802,1736159449647,-151.0,0.000193,2]
[347853804,1736159449656,-8519.83012174,0.00019348,2]
[347853805,1736159449665,-676.16,0.00019399,3]
[347853807,1736159449675,-8498.21237318,0.000194,2]
[347853809,1736159449685,-367.8007,0.000194,2]
[347853811,1736159449694,-367.8007,0.000194,2]
[347853813,1736159449704,-500.0,0.00019451,2]
[347853815,1736159449714,-676.16,0.00019451,3]
[347853816,1736159449723,-676.16,0.00019451,3]
[347853817,1736159449732,-500.0,0.00019451,3]
[347853818,1736159449741,-500.0,0.00019451,3]
[347853819,1736159449751,-500.0,0.00019451,3]
[347853820,1736159449761,-368.87846981,0.00019451,3]
[347853822,1736159449770,-4200.21,0.00019451,3]
[347853824,1736159449779,-4200.21,0.00019451,3]
[347853826,1736159449789,-500.0,0.00019451,3]
[347853828,1736159449798,-500.0,0.00019451,3]
[347853829,1736159449807,-677.61,0.00019451,3]
[347853830,1736159449816,-677.61,0.00019451,3]
[347853831,1736159449826,-500.0,0.00019452,3]
[347853832,1736159449835,-212.75485736,0.00019452,3]
[347853833,1736159449844,-500.0,0.00019452,3]
[347853834,1736159449854,-500.0,0.00019452,3]
[347853835,1736159449863,-3545.18,0.00019452,3]
[347853836,1736159449872,-469.35,0.00019452,3]
[347853837,1736159449881,-377.17,0.00019452,3]
[347853838,1736159449891,-500.0,0.00019452,3]
[347853839,1736159449900,-500.0,0.00019452,3]
[347853840,1736159449909,-500.0,0.00019452,3]
[347853841,1736159449919,-500.37880648,0.00019452,3]
[347853842,1736159449928,-500.0,0.00019452,3]
[347853843,1736159449938,-500.0,0.00019452,3]
[347853844,1736159449947,-500.0,0.00019452,3]
[347853845,1736159449957,-500.0,0.00019452,3]
[347853846,1736159449967,-500.0,0.00019452,3]
[347853847,1736159449976,-399.65806065,0.00019452,3]
[347853848,1736159449986,-500.0,0.00019452,3]
[347853849,1736159449995,-262.67,0.00019452,3]
[347853850,1736159450004,-500.0,0.00019452,3]
[347853851,1736159450013,-1057.02,0.00019452,3]
[347853852,1736159450022,-500.0,0.00019452,3]
[347853853,1736159450032,-500.0,0.00019452,3]
[347853854,1736159450041,-500.0,0.00019452,3]
[347853855,1736159450050,-631.3,0.00019452,3]
[347853856,1736159450060,-151.0,0.00019452,2]
[347853857,1736159450069,-500.0,0.00019452,3]
[347853858,1736159450078,-500.0,0.00019452,3]
[347853859,1736159450088,-500.0,0.00019452,3]
[347853860,1736159450097,-500.0,0.00019452,3]
[347853861,1736159450107,-500.0,0.00019452,3]
[347853862,1736159450116,-1403.168996,0.00019452,2]
[347853863,1736159450126,-1403.168996,0.00019452,2]
[347853864,1736159450135,-500.0,0.00019452,3]
[347853865,1736159450144,-500.0,0.00019452,3]
[347853866,1736159450154,-1042.08,0.00019452,3]
[347853867,1736159450163,-500.0,0.00019452,3]
[347853868,1736159450172,-500.0,0.00019452,3]
[347853869,1736159450182,-500.0,0.00019452,3]
[347853870,1736159450193,-500.0,0.00019452,3]
[347853871,1736159450202,-188.63820013,0.00019452,2]
[347853872,1736159450211,-500.0,0.00019452,3]
[347853873,1736159450220,-179.66,0.00019452,3]
[347853874,1736159450230,-500.0,0.00019452,3]
[347853875,1736159450239,-500.0,0.00019452,3]
[347853876,1736159450249,-1714.61,0.00019452,3]
[347853877,1736159450258,-213.38,0.00019452,3]
[347853878,1736159450267,-500.0,0.00019452,3]
[347853879,1736159450277,-642.04,0.00019452,3]
[347853880,1736159450290,-151.0,0.00019452,2]
[347853881,1736159450299,-1223.36,0.00019452,3]
[347853883,1736159450309,-500.0,0.00019452,2]
[347853885,1736159450318,-500.0,0.00019452,3]
[347853887,1736159450328,-500.0,0.00019452,3]
[347853889,1736159450337,-500.0,0.00019452,3]
[347853891,1736159450346,-276.53,0.00019452,3]
[347853892,1736159450355,-248.78700868,0.00019452,3]
[347853893,1736159450365,-500.0,0.00019452,3]
[347853894,1736159450374,-500.0,0.00019452,3]
[347853896,1736159450384,-500.0,0.00019452,3]
[347853897,1736159450393,-500.0,0.00019452,3]
[347853899,1736159450403,-500.0,0.00019452,3]
[347853901,1736159450412,-500.0,0.00019452,3]
[347853903,1736159450422,-500.0,0.00019452,3]
[347853905,1736159450432,-772.86,0.00019452,3]
[347853906,1736159450442,-500.0,0.00019452,3]
[347853907,1736159450451,-267.91993975,0.00019452,3]
[347853908,1736159450461,-500.0,0.00019452,3]
[347853909,1736159450470,-615.51,0.00019452,3]
[347853910,1736159450479,-500.0,0.00019452,3]
[347853911,1736159450489,-500.0,0.00019452,3]
[347853912,1736159450498,-500.0,0.00019452,3]
[347853913,1736159450508,-500.0,0.00019452,3]
[347853914,1736159450517,-500.0,0.00019452,3]
[347853915,1736159450526,-500.0,0.00019452,3]
[347853916,1736159450535,-500.0,0.00019452,3]
[347853917,1736159450544,-223.67362033,0.00019452,3]
[347853918,1736159450554,-3141.81,0.00019452,3]
[347853919,1736159450563,-11056.87,0.00019452,3]
[347853920,1736159450572,-500.0,0.00019452,3]
[347853921,1736159450582,-500.0,0.00019452,3]
[347853922,1736159450591,-884.96,0.00019452,3]
[347853923,1736159450601,-711.21,0.00019452,3]
[347853924,1736159450610,-500.0,0.00019452,3]
[347853925,1736159450620,-500.0,0.00019452,3]
[347853926,1736159450629,-500.0,0.00019452,3]
[347853927,1736159450639,-500.0,0.00019452,3]
[347853928,1736159450648,-500.0,0.00019452,3]
[347853929,1736159450657,-501.22545368,0.00019452,3]
[347853930,1736159450666,-500.0,0.00019452,3]
[347853931,1736159450676,-505.39380714,0.00019452,2]
[347853932,1736159450684,-500.0,0.00019452,3]
[347853933,1736159450693,-500.0,0.00019452,3]
[347853934,1736159450703,-500.0,0.00019452,3]
[347853935,1736159450712,-500.0,0.00019452,3]
[347853936,1736159450721,-500.0,0.00019452,3]
[347853937,1736159450730,-500.0,0.00019452,3]
[347853938,1736159450739,-500.0,0.00019452,3]
[347853939,1736159450749,-652.79,0.00019452,3]
[347853940,1736159450758,-500.0,0.00019452,3]
[347853941,1736159450768,-500.0,0.00019452,3]
[347853942,1736159450777,-500.0,0.00019452,3]
[347853943,1736159450787,-12010.49594202,0.00019478,2]
[347853944,1736159450796,-8519.83012174,0.00019555,2]
[347853945,1736159450805,-676.16,0.00019599,3]
[347853946,1736159450815,-8498.21237318,0.000196,2]
[347853947,1736159450824,-367.8007,0.000196,2]
[347853948,1736159450834,-367.8007,0.000196,2]
[347853949,1736159450842,-500.0,0.00019721,2]
[347853950,1736159450852,-1000.0,0.00019721,2]
[347853951,1736159450865,-1000.0,0.00019721,2]
[347853952,1736159450875,-495.94794282,0.00019725,2]
[347853953,1736159450884,-676.16,0.00019725,3]
[347853955,1736159450893,-676.16,0.00019725,3]
[347853957,1736159450901,-500.0,0.00019725,3]
[347853958,1736159450911,-500.0,0.00019725,3]
[347853959,1736159450920,-151.0,0.00019725,2]
[347853960,1736159450929,-1403.168996,0.00019725,2]
[347853961,1736159450938,-1403.168996,0.00019725,2]
[347853962,1736159450949,-4200.21,0.00019725,3]
[347853963,1736159450959,-507.41165963,0.00019725,3]
[347853964,1736159450968,-151.0,0.00019725,2]
[347853966,1736159450978,-677.61,0.00019725,3]
[347853968,1736159450987,-500.0,0.00019726,3]
[347853970,1736159450996,-531.61,0.00019726,3]
[347853972,1736159451005,-3545.18,0.00019726,3]
[347853973,1736159451014,-500.0,0.00019726,3]
[347853974,1736159451023,-500.0,0.00019726,3]
[347853975,1736159451032,-151.0,0.00019726,2]
[347853976,1736159451042,-151.0,0.00019726,2]
[347853977,1736159451050,-500.0,0.00019726,3]
[347853978,1736159451059,-151.0,0.00019726,2]
[347853979,1736159451068,-500.0,0.00019726,3]
[347853980,1736159451077,-500.0,0.00019726,3]
[347853981,1736159451086,-407.66,0.00019726,3]
[347853982,1736159451095,-244.63,0.00019726,3]
[347853983,1736159451104,-500.0,0.00019726,3]
[347853984,1736159451113,-1057.02,0.00019726,3]
[347853985,1736159451123,-467.95,0.00019726,3]
[347853986,1736159451132,-241.52,0.00019726,3]
[347853987,1736159451141,-513.91,0.00019726,3]
[347853988,1736159451151,-631.14,0.00019726,3]
[347853989,1736159451160,-500.0,0.00019726,3]
[347853990,1736159451169,-540.11,0.00019726,3]
[347853991,1736159451178,-1042.08,0.00019726,3]
[347853992,1736159451267,-500.0,0.00019726,3]
[347853993,1736159451276,-436.79,0.00019726,3]
[347853994,1736159451288,-503.44053095,0.00019726,3]